[Event "Betsys MČR v online bleskovém šachu 2021"]
[Site "Chess.com"]
[Date "2021.04.17"]
[Round "1"]
[White "Ami2013"]
[Black "Miky2610"]
[Result "0-1"]
[WhiteElo "424"]
[BlackElo "1846"]
[TimeControl "180+1"]
[EndTime "9:07:09 PDT"]
[Termination "Uživatel Miky2610 zvítězil na čas"]

1. e4 {[%clk 0:03:00.6]} 1... c6 {[%clk 0:03:00]} 2. Nf3 {[%clk 0:02:58.9]} 2...
d5 {[%clk 0:03:00.1]} 3. exd5 {[%clk 0:02:56.3]} 3... cxd5 {[%clk 0:03:00.2]} 4.
Nc3 {[%clk 0:02:55.1]} 4... Nf6 {[%clk 0:02:59.8]} 5. Bb5+ {[%clk 0:02:51.5]}
5... Nc6 {[%clk 0:02:59.2]} 6. O-O {[%clk 0:02:49.6]} 6... e6 {[%clk 0:02:57.5]}
7. d3 {[%clk 0:02:45.7]} 7... Bd6 {[%clk 0:02:57.3]} 8. Bg5 {[%clk 0:02:38.5]}
8... h6 {[%clk 0:02:54.7]} 9. Bh4 {[%clk 0:02:37.5]} 9... O-O {[%clk 0:02:54.6]}
10. h3 {[%clk 0:02:32.7]} 10... a6 {[%clk 0:02:53.8]} 11. Bxc6 {[%clk
0:02:30.8]} 11... bxc6 {[%clk 0:02:53.3]} 12. d4 {[%clk 0:02:23.6]} 12... Bd7
{[%clk 0:02:51]} 13. Qd3 {[%clk 0:02:21.6]} 13... c5 {[%clk 0:02:44]} 14. Bg5
{[%clk 0:02:05.9]} 14... c4 {[%clk 0:02:33.2]} 15. Qe3 {[%clk 0:01:52.7]} 15...
Be7 {[%clk 0:02:13.4]} 16. Qf4 {[%clk 0:01:30.4]} 16... Nh5 {[%clk 0:02:08.8]}
17. Qg4 {[%clk 0:01:20.5]} 17... Bxg5 {[%clk 0:02:05.5]} 18. Qxh5 {[%clk
0:01:12.8]} 18... Bf4 {[%clk 0:01:52.2]} 19. Ne5 {[%clk 0:01:03.2]} 19... Bxe5
{[%clk 0:01:49.6]} 20. Qxe5 {[%clk 0:01:01.7]} 20... Qb8 {[%clk 0:01:45.5]} 21.
Qxb8 {[%clk 0:00:57.3]} 21... Raxb8 {[%clk 0:01:45.7]} 22. Rfe1 {[%clk 0:00:55]}
22... Rxb2 {[%clk 0:01:44.4]} 23. Re3 {[%clk 0:00:51.1]} 23... Rfb8 {[%clk
0:01:42.4]} 24. Rae1 {[%clk 0:00:44.7]} 24... Rxc2 {[%clk 0:01:41.6]} 25. Rg3
{[%clk 0:00:28.2]} 25... Rbb2 {[%clk 0:01:40.1]} 26. Ree3 {[%clk 0:00:23.5]}
26... Rxf2 {[%clk 0:01:38.4]} 27. Kh1 {[%clk 0:00:18.9]} 27... Rfd2 {[%clk
0:01:34.5]} 28. Kh2 {[%clk 0:00:18.7]} 28... Rxd4 {[%clk 0:01:33.8]} 29. Ref3
{[%clk 0:00:16.3]} 29... Rdd2 {[%clk 0:01:28.1]} 30. Rf4 {[%clk 0:00:14]} 30...
e5 {[%clk 0:01:26.2]} 31. Rfg4 {[%clk 0:00:13.5]} 31... g6 {[%clk 0:01:24.8]}
32. Rh4 {[%clk 0:00:11.6]} 32... h5 {[%clk 0:01:21.3]} 33. Na4 {[%clk
0:00:04.4]} 33... Rxa2 {[%clk 0:01:20.2]} 34. Nb6 {[%clk 0:00:03.7]} 34... Bb5
{[%clk 0:01:18]} 35. Nd7 {[%clk 0:00:03.4]} 35... Bxd7 {[%clk 0:01:17]} 36. Rf3
{[%clk 0:00:01.6]} 36... e4 {[%clk 0:01:16.1]} 37. Rg3 {[%clk 0:00:01.4]} 37...
Ba4 {[%clk 0:01:13.5]} 38. Rg5 {[%clk 0:00:01.1]} 38... c3 {[%clk 0:01:12.1]}
0-1

[Event "Betsys MČR v online bleskovém šachu 2021"]
[Site "Chess.com"]
[Date "2021.04.17"]
[Round "1"]
[White "petr812"]
[Black "TomasOrnet1"]
[Result "0-1"]
[WhiteElo "2105"]
[BlackElo "1509"]
[TimeControl "180+1"]
[EndTime "9:07:11 PDT"]
[Termination "Uživatel TomasOrnet1 zvítězil po vzdání soupeře"]

1. e4 {[%clk 0:02:57.2]} 1... e5 {[%clk 0:02:59.2]} 2. f4 {[%clk 0:02:56.4]}
2... exf4 {[%clk 0:02:57.9]} 3. Nf3 {[%clk 0:02:54.6]} 3... d6 {[%clk
0:02:57.2]} 4. d4 {[%clk 0:02:53.7]} 4... g5 {[%clk 0:02:55.4]} 5. Bc4 {[%clk
0:02:53.3]} 5... Be6 {[%clk 0:02:53.9]} 6. Bxe6 {[%clk 0:02:50.7]} 6... fxe6
{[%clk 0:02:53.2]} 7. O-O {[%clk 0:02:50.1]} 7... h6 {[%clk 0:02:52.4]} 8. c3
{[%clk 0:02:47.3]} 8... Bg7 {[%clk 0:02:51.5]} 9. Qb3 {[%clk 0:02:46.6]} 9... b6
{[%clk 0:02:42.9]} 10. Qxe6+ {[%clk 0:02:45.4]} 10... Qe7 {[%clk 0:02:42.8]} 11.
Qxe7+ {[%clk 0:02:45.3]} 11... Nxe7 {[%clk 0:02:42.3]} 12. Nbd2 {[%clk
0:02:43.5]} 12... Nd7 {[%clk 0:02:41.3]} 13. Nb3 {[%clk 0:02:40.1]} 13... O-O-O
{[%clk 0:02:40.1]} 14. Bd2 {[%clk 0:02:39.9]} 14... Kb7 {[%clk 0:02:35.3]} 15.
Rad1 {[%clk 0:02:26.7]} 15... Nf6 {[%clk 0:02:34.3]} 16. Rfe1 {[%clk 0:02:23.3]}
16... Rde8 {[%clk 0:02:32.2]} 17. e5 {[%clk 0:02:22.1]} 17... dxe5 {[%clk
0:02:27.6]} 18. Nxe5 {[%clk 0:02:21.8]} 18... Nc6 {[%clk 0:02:16.6]} 19. Re2
{[%clk 0:02:11.1]} 19... Nxe5 {[%clk 0:02:15.8]} 20. dxe5 {[%clk 0:02:09.2]}
20... Ng4 {[%clk 0:02:15]} 21. e6 {[%clk 0:02:03.6]} 21... Nf6 {[%clk
0:02:13.2]} 22. Rde1 {[%clk 0:02:02.1]} 22... Nd5 {[%clk 0:02:10.6]} 23. Nd4
{[%clk 0:01:56.6]} 23... Bxd4+ {[%clk 0:02:07.1]} 24. cxd4 {[%clk 0:01:56.3]}
24... Rh7 {[%clk 0:02:02.9]} 25. Re5 {[%clk 0:01:49.9]} 25... c6 {[%clk
0:01:59.9]} 26. g3 {[%clk 0:01:45.3]} 26... fxg3 {[%clk 0:01:58.3]} 27. hxg3
{[%clk 0:01:45]} 27... Kc7 {[%clk 0:01:56.5]} 28. Rf1 {[%clk 0:01:35.1]} 28...
Kd6 {[%clk 0:01:55.6]} 29. Rfe1 {[%clk 0:01:15.6]} 29... Rhe7 {[%clk 0:01:53.8]}
30. Kg2 {[%clk 0:01:06.2]} 30... Rxe6 {[%clk 0:01:53]} 31. Rxe6+ {[%clk
0:01:05.9]} 31... Rxe6 {[%clk 0:01:52.2]} 32. Rxe6+ {[%clk 0:01:04.1]} 32...
Kxe6 {[%clk 0:01:52]} 33. Kf3 {[%clk 0:01:04.1]} 33... Nf6 {[%clk 0:01:50]} 34.
b3 {[%clk 0:00:54.5]} 34... Kd5 {[%clk 0:01:49.3]} 35. Be3 {[%clk 0:00:52.8]}
35... Ne4 {[%clk 0:01:47.4]} 36. Kg4 {[%clk 0:00:48.8]} 36... Nf6+ {[%clk
0:01:41.5]} 37. Kf5 {[%clk 0:00:47.1]} 37... Ne4 {[%clk 0:01:40.9]} 38. g4
{[%clk 0:00:44.7]} 38... Nc3 {[%clk 0:01:21.8]} 39. a3 {[%clk 0:00:42.5]} 39...
Nb5 {[%clk 0:01:21]} 40. Kg6 {[%clk 0:00:38.4]} 40... Nxd4 {[%clk 0:01:20.8]}
41. Bxd4 {[%clk 0:00:36.8]} 41... Kxd4 {[%clk 0:01:20.4]} 42. Kxh6 {[%clk
0:00:37.1]} 42... b5 {[%clk 0:01:20.4]} 43. Kxg5 {[%clk 0:00:38]} 43... c5
{[%clk 0:01:20.6]} 44. Kf4 {[%clk 0:00:37.9]} 44... c4 {[%clk 0:01:20.8]} 45.
bxc4 {[%clk 0:00:33.4]} 45... bxc4 {[%clk 0:01:20.1]} 46. Kf3 {[%clk 0:00:33.5]}
46... Kd3 {[%clk 0:01:19.4]} 47. g5 {[%clk 0:00:33.5]} 47... c3 {[%clk
0:01:19.5]} 48. Kf2 {[%clk 0:00:31.4]} 48... c2 {[%clk 0:01:18.7]} 49. g6 {[%clk
0:00:29.7]} 49... c1=Q {[%clk 0:01:17.5]} 50. g7 {[%clk 0:00:29.3]} 50... Qg5
{[%clk 0:01:16.7]} 0-1

[Event "Betsys MČR v online bleskovém šachu 2021"]
[Site "Chess.com"]
[Date "2021.04.17"]
[Round "1"]
[White "JJ95"]
[Black "Anyna"]
[Result "1-0"]
[WhiteElo "2001"]
[BlackElo "1193"]
[TimeControl "180+1"]
[EndTime "9:07:11 PDT"]
[Termination "Uživatel JJ95 zvítězil na čas"]

1. e4 {[%clk 0:03:00.9]} 1... d5 {[%clk 0:02:57.4]} 2. exd5 {[%clk 0:03:00.6]}
2... Qxd5 {[%clk 0:02:55.7]} 3. Nc3 {[%clk 0:03:00.8]} 3... Qa5 {[%clk
0:02:55.3]} 4. d4 {[%clk 0:03:00]} 4... Nf6 {[%clk 0:02:54.1]} 5. Nf3 {[%clk
0:02:58.9]} 5... Nc6 {[%clk 0:02:50.9]} 6. Be2 {[%clk 0:02:58.1]} 6... Bg4
{[%clk 0:02:45.8]} 7. O-O {[%clk 0:02:57.8]} 7... O-O-O {[%clk 0:02:43.5]} 8.
Be3 {[%clk 0:02:42.9]} 8... e5 {[%clk 0:02:16.8]} 9. Qc1 {[%clk 0:02:00.5]} 9...
exd4 {[%clk 0:02:04.2]} 10. Nxd4 {[%clk 0:01:54.5]} 10... Bxe2 {[%clk
0:02:01.2]} 11. Ndxe2 {[%clk 0:01:53.7]} 11... Bb4 {[%clk 0:01:47.8]} 12. a3
{[%clk 0:01:52.9]} 12... Bd6 {[%clk 0:01:42.9]} 13. b4 {[%clk 0:01:47.4]} 13...
Qe5 {[%clk 0:01:33]} 14. Bf4 {[%clk 0:01:47.5]} 14... Qh5 {[%clk 0:01:30.2]} 15.
Ng3 {[%clk 0:01:35]} 15... Qg6 {[%clk 0:00:58.3]} 16. Bxd6 {[%clk 0:01:31.4]}
16... Rxd6 {[%clk 0:00:56.1]} 17. Qf4 {[%clk 0:01:21]} 17... Rhd8 {[%clk
0:00:48.9]} 18. Nb5 {[%clk 0:01:13]} 18... R6d7 {[%clk 0:00:44.3]} 19. c4 {[%clk
0:01:00.1]} 19... a6 {[%clk 0:00:27.8]} 20. Nc3 {[%clk 0:00:57.6]} 20... Qd3
{[%clk 0:00:17.7]} 21. Nce2 {[%clk 0:00:45.4]} 21... Ne4 {[%clk 0:00:08.9]} 22.
Qxe4 {[%clk 0:00:44.3]} 22... Qxe4 {[%clk 0:00:07.3]} 23. Nxe4 {[%clk
0:00:45.2]} 23... Re7 {[%clk 0:00:06.7]} 24. N2g3 {[%clk 0:00:42.5]} 24... f5
{[%clk 0:00:03.1]} 25. Nc5 {[%clk 0:00:38.8]} 25... b6 {[%clk 0:00:01.9]} 26.
Nxa6 {[%clk 0:00:37.4]} 1-0

[Event "Betsys MČR v online bleskovém šachu 2021"]
[Site "Chess.com"]
[Date "2021.04.17"]
[Round "1"]
[White "domecek"]
[Black "Tomasn2003"]
[Result "1-0"]
[WhiteElo "1965"]
[BlackElo "1122"]
[TimeControl "180+1"]
[EndTime "9:07:12 PDT"]
[Termination "Uživatel domecek zvítězil po vzdání soupeře"]

1. d4 {[%clk 0:02:59.2]} 1... d5 {[%clk 0:03:00]} 2. Nf3 {[%clk 0:02:58.9]} 2...
Nc6 {[%clk 0:02:59.2]} 3. g3 {[%clk 0:02:59]} 3... Nf6 {[%clk 0:02:57.2]} 4. Bg2
{[%clk 0:02:59]} 4... g6 {[%clk 0:02:56.3]} 5. O-O {[%clk 0:02:58.8]} 5... Bg7
{[%clk 0:02:56.4]} 6. b3 {[%clk 0:02:58.8]} 6... O-O {[%clk 0:02:56.2]} 7. Bb2
{[%clk 0:02:58.9]} 7... Re8 {[%clk 0:02:52.8]} 8. Nbd2 {[%clk 0:02:58.3]} 8...
Bg4 {[%clk 0:02:48.4]} 9. c4 {[%clk 0:02:51.9]} 9... e5 {[%clk 0:02:43]} 10.
dxe5 {[%clk 0:02:33.7]} 10... Bxf3 {[%clk 0:02:42.3]} 11. Nxf3 {[%clk
0:01:51.1]} 11... Nd7 {[%clk 0:02:33.7]} 12. cxd5 {[%clk 0:01:49.2]} 12... Ncxe5
{[%clk 0:02:27.7]} 13. Nxe5 {[%clk 0:01:50.1]} 13... Nxe5 {[%clk 0:02:27.3]} 14.
Qd2 {[%clk 0:01:41.1]} 14... c6 {[%clk 0:01:53.4]} 15. Rfd1 {[%clk 0:01:39.3]}
15... cxd5 {[%clk 0:01:50.9]} 16. Qxd5 {[%clk 0:01:32.6]} 16... Qxd5 {[%clk
0:01:50.3]} 17. Bxd5 {[%clk 0:01:27.9]} 17... Nc6 {[%clk 0:01:48.7]} 18. Bxg7
{[%clk 0:01:26.3]} 18... Kxg7 {[%clk 0:01:48.9]} 19. Bxc6 {[%clk 0:01:24.1]}
19... bxc6 {[%clk 0:01:48.6]} 20. e3 {[%clk 0:01:23.5]} 20... Rad8 {[%clk
0:01:44]} 21. Kf1 {[%clk 0:01:22.5]} 21... Rxd1+ {[%clk 0:01:38.5]} 22. Rxd1
{[%clk 0:01:23.4]} 22... Kf6 {[%clk 0:01:37.7]} 23. Rd6+ {[%clk 0:01:20]} 23...
Re6 {[%clk 0:01:37.8]} 24. Rxe6+ {[%clk 0:01:18.6]} 24... Kxe6 {[%clk
0:01:37.8]} 25. Ke2 {[%clk 0:01:18.9]} 25... h5 {[%clk 0:01:26.2]} 26. Kd3
{[%clk 0:01:16.5]} 26... Kd5 {[%clk 0:01:26.3]} 27. e4+ {[%clk 0:01:12.9]} 27...
Ke5 {[%clk 0:01:26.5]} 28. f4+ {[%clk 0:01:12.5]} 28... Kd6 {[%clk 0:01:26.4]}
29. Kd4 {[%clk 0:01:09]} 29... f6 {[%clk 0:01:21.9]} 30. Kc4 {[%clk 0:01:05]}
30... a6 {[%clk 0:01:19.1]} 31. Kd4 {[%clk 0:01:03.9]} 31... a5 {[%clk
0:01:16.7]} 32. Kc4 {[%clk 0:01:03.3]} 32... g5 {[%clk 0:01:10.8]} 33. Kd4
{[%clk 0:00:59.2]} 33... gxf4 {[%clk 0:01:10.1]} 34. gxf4 {[%clk 0:00:59.4]}
34... h4 {[%clk 0:01:09.1]} 35. h3 {[%clk 0:00:58.4]} 35... c5+ {[%clk
0:01:08.1]} 36. Kc4 {[%clk 0:00:57.4]} 36... Kc6 {[%clk 0:01:07.2]} 37. a3
{[%clk 0:00:55.2]} 37... Kb6 {[%clk 0:00:59.5]} 38. e5 {[%clk 0:00:49]} 38...
fxe5 {[%clk 0:00:58.6]} 39. fxe5 {[%clk 0:00:49.2]} 39... Kc6 {[%clk 0:00:57.5]}
40. e6 {[%clk 0:00:43.9]} 40... a4 {[%clk 0:00:57.5]} 41. bxa4 {[%clk
0:00:42.9]} 41... Kd6 {[%clk 0:00:57.4]} 42. e7 {[%clk 0:00:42.7]} 42... Kxe7
{[%clk 0:00:57.5]} 43. Kxc5 {[%clk 0:00:42.9]} 43... Kd8 {[%clk 0:00:57.9]} 44.
Kd5 {[%clk 0:00:41.7]} 44... Kc7 {[%clk 0:00:56.5]} 45. Ke5 {[%clk 0:00:42]}
45... Kb6 {[%clk 0:00:54.8]} 46. Kf5 {[%clk 0:00:42.2]} 46... Ka5 {[%clk
0:00:54.9]} 47. Kg4 {[%clk 0:00:42.1]} 47... Kxa4 {[%clk 0:00:55.2]} 48. Kxh4
{[%clk 0:00:42.5]} 48... Kxa3 {[%clk 0:00:56.1]} 49. Kg5 {[%clk 0:00:43.1]}
49... Kb4 {[%clk 0:00:57]} 50. h4 {[%clk 0:00:43.1]} 50... Kc5 {[%clk
0:00:57.9]} 1-0

[Event "Betsys MČR v online bleskovém šachu 2021"]
[Site "Chess.com"]
[Date "2021.04.17"]
[Round "1"]
[White "Hroch-hroch"]
[Black "l_pavlasek"]
[Result "1-0"]
[WhiteElo "2289"]
[BlackElo "1657"]
[TimeControl "180+1"]
[EndTime "9:07:13 PDT"]
[Termination "Uživatel Hroch-hroch zvítězil na čas"]

1. e4 {[%clk 0:02:55.4]} 1... e5 {[%clk 0:02:58.5]} 2. Nf3 {[%clk 0:02:54.7]}
2... Nc6 {[%clk 0:02:56.3]} 3. Nc3 {[%clk 0:02:54.4]} 3... Bc5 {[%clk 0:02:52]}
4. Nxe5 {[%clk 0:02:53.6]} 4... Bxf2+ {[%clk 0:02:47.4]} 5. Kxf2 {[%clk
0:02:52.7]} 5... Nxe5 {[%clk 0:02:47.3]} 6. d4 {[%clk 0:02:52.5]} 6... Ng6
{[%clk 0:02:43]} 7. Bc4 {[%clk 0:02:43.9]} 7... d6 {[%clk 0:02:23.5]} 8. Rf1
{[%clk 0:02:36.8]} 8... Qe7 {[%clk 0:01:52]} 9. Kg1 {[%clk 0:02:20.3]} 9... f6
{[%clk 0:01:49]} 10. Qh5 {[%clk 0:01:24.1]} 10... Be6 {[%clk 0:01:17.6]} 11.
Bxe6 {[%clk 0:01:23.2]} 11... Qxe6 {[%clk 0:01:15.9]} 12. Qb5+ {[%clk
0:01:21.6]} 12... Qd7 {[%clk 0:01:03.6]} 13. Qxb7 {[%clk 0:01:19.7]} 13... Rc8
{[%clk 0:00:59.3]} 14. e5 {[%clk 0:01:05.4]} 14... dxe5 {[%clk 0:00:43.7]} 15.
dxe5 {[%clk 0:01:04.6]} 15... Nxe5 {[%clk 0:00:43.5]} 16. Bf4 {[%clk 0:01:02]}
16... Qd4+ {[%clk 0:00:33.1]} 17. Kh1 {[%clk 0:00:59.6]} 17... Ne7 {[%clk
0:00:29.9]} 18. Bxe5 {[%clk 0:00:55.7]} 18... Qxe5 {[%clk 0:00:24.4]} 19. Rae1
{[%clk 0:00:49.4]} 19... Qd6 {[%clk 0:00:20.2]} 20. Qxc8+ {[%clk 0:00:47.3]}
20... Qd8 {[%clk 0:00:17.1]} 21. Qe6 {[%clk 0:00:44.1]} 21... Kf8 {[%clk
0:00:14]} 22. Ne4 {[%clk 0:00:40.3]} 22... h5 {[%clk 0:00:08]} 23. Nxf6 {[%clk
0:00:39]} 23... gxf6 {[%clk 0:00:06.1]} 24. Rxf6+ {[%clk 0:00:38.7]} 24... Kg7
{[%clk 0:00:03.3]} 25. Rf7+ {[%clk 0:00:38.5]} 25... Kg8 {[%clk 0:00:01.3]} 26.
Rxe7+ {[%clk 0:00:37.7]} 1-0

[Event "Betsys MČR v online bleskovém šachu 2021"]
[Site "Chess.com"]
[Date "2021.04.17"]
[Round "1"]
[White "EliasD123"]
[Black "Richarlito"]
[Result "0-1"]
[WhiteElo "1270"]
[BlackElo "2007"]
[TimeControl "180+1"]
[EndTime "9:07:13 PDT"]
[Termination "Uživatel Richarlito zvítězil matem"]

1. e4 {[%clk 0:02:59.7]} 1... c6 {[%clk 0:02:58.9]} 2. d4 {[%clk 0:02:59.2]}
2... d5 {[%clk 0:02:58.8]} 3. exd5 {[%clk 0:02:59.6]} 3... cxd5 {[%clk 0:02:59]}
4. Nc3 {[%clk 0:03:00.2]} 4... Nc6 {[%clk 0:02:58.9]} 5. Nf3 {[%clk 0:02:56.2]}
5... Nf6 {[%clk 0:02:58.7]} 6. Bf4 {[%clk 0:02:55.8]} 6... a6 {[%clk 0:02:54.8]}
7. h3 {[%clk 0:02:53]} 7... Bf5 {[%clk 0:02:54]} 8. Bd3 {[%clk 0:02:45.7]} 8...
Bg6 {[%clk 0:02:53.9]} 9. Qd2 {[%clk 0:02:43.2]} 9... e6 {[%clk 0:02:52.4]} 10.
O-O {[%clk 0:02:41.2]} 10... Bd6 {[%clk 0:02:51.5]} 11. Bg3 {[%clk 0:02:36.4]}
11... O-O {[%clk 0:02:45.8]} 12. Bh4 {[%clk 0:02:33.3]} 12... Be7 {[%clk
0:02:22.5]} 13. Rae1 {[%clk 0:02:27.8]} 13... Rc8 {[%clk 0:02:11.1]} 14. a3
{[%clk 0:02:22]} 14... b5 {[%clk 0:02:10.1]} 15. Re2 {[%clk 0:02:13.2]} 15...
Na5 {[%clk 0:02:07.1]} 16. b3 {[%clk 0:02:09.8]} 16... Bxa3 {[%clk 0:02:02.5]}
17. Ra1 {[%clk 0:01:59.9]} 17... Bb4 {[%clk 0:02:02.6]} 18. Ne5 {[%clk
0:01:55.4]} 18... Bxc3 {[%clk 0:01:58.6]} 19. Qd1 {[%clk 0:01:50]} 19... Bxa1
{[%clk 0:01:58.2]} 20. Qxa1 {[%clk 0:01:49.7]} 20... Bxd3 {[%clk 0:01:56.7]} 21.
cxd3 {[%clk 0:01:48.2]} 21... Nxb3 {[%clk 0:01:52.5]} 22. Qb2 {[%clk 0:01:41.1]}
22... Na5 {[%clk 0:01:44.4]} 23. Re3 {[%clk 0:01:35.4]} 23... Qc7 {[%clk
0:01:31.4]} 24. Bxf6 {[%clk 0:01:28.2]} 24... Qc1+ {[%clk 0:01:27.2]} 25. Qxc1
{[%clk 0:01:27.4]} 25... Rxc1+ {[%clk 0:01:26.9]} 26. Kh2 {[%clk 0:01:26]} 26...
gxf6 {[%clk 0:01:27.4]} 27. Rg3+ {[%clk 0:01:25.3]} 27... Kh8 {[%clk 0:01:26.9]}
28. Nd7 {[%clk 0:01:24.3]} 28... Rg8 {[%clk 0:01:24]} 29. Rxg8+ {[%clk 0:01:11]}
29... Kxg8 {[%clk 0:01:23.7]} 30. Nxf6+ {[%clk 0:01:11]} 30... Kg7 {[%clk
0:01:23.2]} 31. Ne8+ {[%clk 0:01:08.6]} 31... Kf8 {[%clk 0:01:23.3]} 32. Nf6
{[%clk 0:01:07.9]} 32... b4 {[%clk 0:01:23.5]} 33. Nxh7+ {[%clk 0:01:07]} 33...
Kg7 {[%clk 0:01:23.4]} 34. Ng5 {[%clk 0:01:07]} 34... b3 {[%clk 0:01:24.3]} 35.
Nf3 {[%clk 0:01:03.9]} 35... b2 {[%clk 0:01:23.7]} 36. Nd2 {[%clk 0:01:04.4]}
36... b1=Q {[%clk 0:01:21.9]} 37. Nxb1 {[%clk 0:01:04]} 37... Rxb1 {[%clk
0:01:22.2]} 38. Kg3 {[%clk 0:01:03.8]} 38... Rd1 {[%clk 0:01:23.1]} 39. Kf4
{[%clk 0:01:02.6]} 39... Rxd3 {[%clk 0:01:24]} 40. Ke5 {[%clk 0:01:02.2]} 40...
Nc4+ {[%clk 0:01:23.6]} 41. Kf4 {[%clk 0:01:00.4]} 41... Rxd4+ {[%clk
0:01:23.5]} 42. Kg5 {[%clk 0:00:59.4]} 42... f6+ {[%clk 0:01:22.9]} 43. Kh5
{[%clk 0:00:58.9]} 43... Ne5 {[%clk 0:01:22.9]} 44. g4 {[%clk 0:00:56.6]} 44...
a5 {[%clk 0:01:20.6]} 45. g5 {[%clk 0:00:55.9]} 45... fxg5 {[%clk 0:01:17.7]}
46. Kxg5 {[%clk 0:00:55.3]} 46... Nf7+ {[%clk 0:01:14.4]} 47. Kh5 {[%clk
0:00:54.7]} 47... Nh8 {[%clk 0:01:10.4]} 48. h4 {[%clk 0:00:53.9]} 48... Rxh4+
{[%clk 0:01:09.5]} 49. Kxh4 {[%clk 0:00:52.9]} 49... a4 {[%clk 0:01:10.4]} 50.
Kh5 {[%clk 0:00:52.4]} 50... a3 {[%clk 0:01:11.3]} 51. f4 {[%clk 0:00:52.2]}
51... a2 {[%clk 0:01:12.2]} 52. f5 {[%clk 0:00:52.1]} 52... a1=Q {[%clk
0:01:13.1]} 53. fxe6 {[%clk 0:00:51.7]} 53... Qe5+ {[%clk 0:01:05.5]} 54. Kh4
{[%clk 0:00:50.1]} 54... Ng6+ {[%clk 0:01:04.7]} 55. Kg4 {[%clk 0:00:47.4]}
55... Qe4+ {[%clk 0:01:02]} 56. Kg5 {[%clk 0:00:46.9]} 56... Qf4+ {[%clk
0:01:01.6]} 57. Kh5 {[%clk 0:00:46.6]} 57... Qh4# {[%clk 0:01:01.4]} 0-1

[Event "Betsys MČR v online bleskovém šachu 2021"]
[Site "Chess.com"]
[Date "2021.04.17"]
[Round "1"]
[White "Jaja15F"]
[Black "jarda1955"]
[Result "0-1"]
[WhiteElo "1111"]
[BlackElo "1952"]
[TimeControl "180+1"]
[EndTime "9:07:15 PDT"]
[Termination "Uživatel jarda1955 zvítězil na čas"]

1. d4 {[%clk 0:02:50.7]} 1... Nf6 {[%clk 0:02:58.7]} 2. Nf3 {[%clk 0:02:47.6]}
2... c5 {[%clk 0:02:58.3]} 3. Bf4 {[%clk 0:02:43]} 3... e6 {[%clk 0:02:56.5]} 4.
e3 {[%clk 0:02:41.4]} 4... b6 {[%clk 0:02:55.5]} 5. Bd3 {[%clk 0:02:35.2]} 5...
Bb7 {[%clk 0:02:54.7]} 6. Nc3 {[%clk 0:02:32.1]} 6... Be7 {[%clk 0:02:50.9]} 7.
O-O {[%clk 0:02:30.4]} 7... O-O {[%clk 0:02:49.6]} 8. Nb5 {[%clk 0:02:15.5]}
8... d6 {[%clk 0:02:46.3]} 9. Re1 {[%clk 0:02:05.7]} 9... a6 {[%clk 0:02:45.2]}
10. Nc3 {[%clk 0:02:04.5]} 10... Nbd7 {[%clk 0:02:38]} 11. a3 {[%clk 0:02:04]}
11... Re8 {[%clk 0:02:32.3]} 12. e4 {[%clk 0:02:02.3]} 12... cxd4 {[%clk
0:02:27.4]} 13. Ne2 {[%clk 0:01:55.2]} 13... e5 {[%clk 0:02:26.4]} 14. Bg3
{[%clk 0:01:54]} 14... Nxe4 {[%clk 0:02:23.1]} 15. Bxe4 {[%clk 0:01:52.2]} 15...
Bxe4 {[%clk 0:02:22.5]} 16. Nexd4 {[%clk 0:01:49]} 16... Bg6 {[%clk 0:02:17.5]}
17. Nb3 {[%clk 0:01:43]} 17... Qc7 {[%clk 0:02:15.3]} 18. c3 {[%clk 0:01:41]}
18... Rad8 {[%clk 0:02:11.9]} 19. Qe2 {[%clk 0:01:38.2]} 19... a5 {[%clk
0:02:08.7]} 20. Rac1 {[%clk 0:01:14.3]} 20... h6 {[%clk 0:02:06.8]} 21. Nbd2
{[%clk 0:01:13.4]} 21... Nc5 {[%clk 0:02:04.2]} 22. b4 {[%clk 0:01:06.8]} 22...
Nd3 {[%clk 0:02:00.8]} 23. h3 {[%clk 0:00:56.9]} 23... Nxe1 {[%clk 0:01:59.1]}
24. Rxe1 {[%clk 0:00:54.5]} 24... Qxc3 {[%clk 0:01:54.5]} 25. Ne4 {[%clk
0:00:48.3]} 25... Qxa3 {[%clk 0:01:48.9]} 26. Nh4 {[%clk 0:00:44.1]} 26... Bxe4
{[%clk 0:01:44.8]} 27. Qxe4 {[%clk 0:00:42.9]} 27... Qxb4 {[%clk 0:01:43.6]} 28.
Qxb4 {[%clk 0:00:38.1]} 28... axb4 {[%clk 0:01:42.2]} 29. Nf3 {[%clk 0:00:37.3]}
29... Bf6 {[%clk 0:01:39.9]} 30. Rb1 {[%clk 0:00:35.1]} 30... e4 {[%clk
0:01:37.2]} 31. Nd2 {[%clk 0:00:31.9]} 31... Bc3 {[%clk 0:01:36.4]} 32. Nb3
{[%clk 0:00:29.6]} 32... d5 {[%clk 0:01:35.9]} 33. Bc7 {[%clk 0:00:26.5]} 33...
Rd7 {[%clk 0:01:35]} 34. Bxb6 {[%clk 0:00:25.9]} 34... d4 {[%clk 0:01:34.1]} 35.
Rd1 {[%clk 0:00:23.4]} 35... d3 {[%clk 0:01:33]} 36. Nc5 {[%clk 0:00:19.7]}
36... Rd5 {[%clk 0:01:28.9]} 37. Na4 {[%clk 0:00:19.2]} 37... Ra8 {[%clk
0:01:25.8]} 38. Nxc3 {[%clk 0:00:17.6]} 38... bxc3 {[%clk 0:01:25.1]} 39. Kh2
{[%clk 0:00:15.2]} 39... c2 {[%clk 0:01:24.5]} 40. Rc1 {[%clk 0:00:14.9]} 40...
d2 {[%clk 0:01:24.4]} 41. Rxc2 {[%clk 0:00:14.8]} 41... d1=Q {[%clk 0:01:23]}
42. Rc7 {[%clk 0:00:13.6]} 42... Rd7 {[%clk 0:01:20.6]} 43. Rc6 {[%clk
0:00:11.9]} 43... Qd5 {[%clk 0:01:18.3]} 0-1